[Event "Titled Tuesday Blitz January 31 Late 2023"]
[White "Klekowski, Maciej"]
[Black "Donskov, Anatoly"]
[WhiteFideId "1132717"]
[BlackFideId "24143413"]
[WhiteElo "2477"]
[BlackElo "2279"]
[Result "1-0"]
[Round "06"]
[TimeControl "180+2"]
[Date "2023.01.31"]
[WhiteClock "0:03:00"]
[BlackClock "0:00:02"]

1. Nf3 {[%clk 0:02:59]}  d5 {[%clk 0:02:59]} 2. d3 {[%clk 0:03:00]}  Nf6 {[%clk 0:02:58]} 3. Nbd2 {[%clk 0:03:00]}  c5 {[%clk 0:02:57]} 4. g3 {[%clk 0:03:01]}  Nc6 {[%clk 0:02:57]} 5. Bg2 {[%clk 0:03:01]}  e6 {[%clk 0:02:56]} 6. e4 {[%clk 0:03:02]}  g6 {[%clk 0:02:57]} 7. O-O {[%clk 0:03:03]}  Bg7 {[%clk 0:02:57]} 8. Re1 {[%clk 0:03:03]}  O-O {[%clk 0:02:57]} 9. c3 {[%clk 0:03:03]}  Kh8 {[%clk 0:02:57]} 10. Qe2 {[%clk 0:03:04]}  b6 {[%clk 0:02:21]} 11. Nf1 {[%clk 0:03:03]}  Ba6 {[%clk 0:02:16]} 12. e5 {[%clk 0:03:03]}  Nd7 {[%clk 0:02:16]} 13. Bf4 {[%clk 0:03:04]}  h6 {[%clk 0:01:50]} 14. h4 {[%clk 0:03:03]}  Qe7 {[%clk 0:01:43]} 15. Rad1 {[%clk 0:03:04]}  Rae8 {[%clk 0:01:39]} 16. Qe3 {[%clk 0:03:04]}  Kh7 {[%clk 0:01:39]} 17. N1h2 {[%clk 0:03:05]}  f6 {[%clk 0:01:14]} 18. exf6 {[%clk 0:03:06]}  Nxf6 {[%clk 0:01:14]} 19. Ne5 {[%clk 0:03:06]}  Nxe5 {[%clk 0:01:13]} 20. Bxe5 {[%clk 0:03:07]}  Nd7 {[%clk 0:01:13]} 21. Bxg7 {[%clk 0:03:03]}  Qxg7 {[%clk 0:01:13]} 22. d4 {[%clk 0:03:03]}  cxd4 {[%clk 0:00:48]} 23. cxd4 {[%clk 0:03:04]}  Nf6 {[%clk 0:00:44]} 24. Bh3 {[%clk 0:03:02]}  Ne4 {[%clk 0:00:41]} 25. f4 {[%clk 0:03:00]}  Qe7 {[%clk 0:00:19]} 26. Bg2 {[%clk 0:03:00]}  Bb7 {[%clk 0:00:19]} 27. a3 {[%clk 0:02:59]}  Rc8 {[%clk 0:00:18]} 28. Rc1 {[%clk 0:02:59]}  Qd7 {[%clk 0:00:18]} 29. Nf3 {[%clk 0:02:59]}  Rxc1 {[%clk 0:00:17]} 30. Rxc1 {[%clk 0:02:59]}  Rc8 {[%clk 0:00:17]} 31. Ne5 {[%clk 0:03:00]}  Qe8 {[%clk 0:00:13]} 32. Bxe4 {[%clk 0:02:59]}  dxe4 {[%clk 0:00:12]} 33. Kf2 {[%clk 0:03:00]}  Qb5 {[%clk 0:00:08]} 34. Rxc8 {[%clk 0:02:59]}  Bxc8 {[%clk 0:00:08]} 35. Qc3 {[%clk 0:03:00]}  Qe8 {[%clk 0:00:01]} 36. Qc7+ {[%clk 0:03:00]}  Kh8 {[%clk 0:00:01]} 37. Ke3 {[%clk 0:03:00]}  Kg8 {[%clk 0:00:02]} 38. Ng4 {[%clk 0:03:00]}  h5 {[%clk 0:00:02]} 39. Nf6+ {[%clk 0:03:00]} 1-0


[Site "https://www.chess.com"]

[Event "Titled Tuesday Blitz January 31 Late 2023"]
[White "Tan, Zhongyi"]
[Black "Danielyan, Vahe"]
[WhiteFideId "8603642"]
[BlackFideId "13304828"]
[WhiteElo "2517"]
[BlackElo "2346"]
[Result "1-0"]
[Round "06"]
[TimeControl "180+2"]
[Date "2023.01.31"]
[WhiteClock "0:00:52"]
[BlackClock "0:00:02"]

1. d4 {[%clk 0:03:00]}  Nf6 {[%clk 0:02:59]} 2. c4 {[%clk 0:03:01]}  g6 {[%clk 0:02:55]} 3. Nc3 {[%clk 0:03:01]}  Bg7 {[%clk 0:02:55]} 4. e4 {[%clk 0:03:00]}  d6 {[%clk 0:02:55]} 5. h3 {[%clk 0:03:01]}  O-O {[%clk 0:02:53]} 6. Be3 {[%clk 0:03:01]}  c6 {[%clk 0:02:52]} 7. Nf3 {[%clk 0:03:00]}  a6 {[%clk 0:02:52]} 8. a4 {[%clk 0:02:57]}  a5 {[%clk 0:02:53]} 9. Be2 {[%clk 0:02:55]}  Na6 {[%clk 0:02:53]} 10. O-O {[%clk 0:02:55]}  Nb4 {[%clk 0:02:53]} 11. Nd2 {[%clk 0:02:52]}  e5 {[%clk 0:02:51]} 12. d5 {[%clk 0:02:49]}  Bd7 {[%clk 0:02:46]} 13. Nb3 {[%clk 0:02:29]}  h6 {[%clk 0:02:40]} 14. c5 {[%clk 0:02:27]}  cxd5 {[%clk 0:02:35]} 15. exd5 {[%clk 0:02:25]}  Ne8 {[%clk 0:02:00]} 16. Nb5 {[%clk 0:02:19]}  f5 {[%clk 0:01:55]} 17. cxd6 {[%clk 0:02:11]}  f4 {[%clk 0:01:50]} 18. Bc5 {[%clk 0:02:10]}  Bf5 {[%clk 0:01:47]} 19. d7 {[%clk 0:02:03]}  Qxd7 {[%clk 0:01:22]} 20. Bxf8 {[%clk 0:02:02]}  Bxf8 {[%clk 0:01:18]} 21. Rc1 {[%clk 0:01:58]}  Rd8 {[%clk 0:01:12]} 22. Nc5 {[%clk 0:01:55]}  Qf7 {[%clk 0:00:54]} 23. Qb3 {[%clk 0:01:42]}  Kh7 {[%clk 0:00:33]} 24. Rfd1 {[%clk 0:01:32]}  e4 {[%clk 0:00:33]} 25. Ne6 {[%clk 0:01:30]}  Rxd5 {[%clk 0:00:29]} 26. Nxf8+ {[%clk 0:01:29]}  Qxf8 {[%clk 0:00:24]} 27. Rxd5 {[%clk 0:01:29]}  f3 {[%clk 0:00:24]} 28. Bf1 {[%clk 0:01:19]}  Qf7 {[%clk 0:00:19]} 29. Rd3 {[%clk 0:01:11]}  Qe7 {[%clk 0:00:12]} 30. Rdc3 {[%clk 0:01:05]}  Nc6 {[%clk 0:00:07]} 31. Qd5 {[%clk 0:00:59]}  Nf6 {[%clk 0:00:06]} 32. Qd6 {[%clk 0:00:58]}  Qf7 {[%clk 0:00:04]} 33. Nd4 {[%clk 0:00:55]}  Nxd4 {[%clk 0:00:02]} 34. Qxd4 {[%clk 0:00:52]} 1-0


[Site "https://www.chess.com"]

[Event "Titled Tuesday Blitz January 31 Late 2023"]
[White "Martinez Ramirez, Lennis"]
[Black "Bas Mas, Jose Joaquin"]
[WhiteFideId "3509079"]
[BlackFideId "22219064"]
[WhiteElo "2426"]
[BlackElo "2197"]
[Result "0-1"]
[Round "06"]
[TimeControl "180+2"]
[Date "2023.01.31"]
[WhiteClock "0:00:01"]
[BlackClock "0:00:08"]

1. c4 {[%clk 0:03:00]}  Nf6 {[%clk 0:02:59]} 2. Nc3 {[%clk 0:03:00]}  e6 {[%clk 0:02:59]} 3. Nf3 {[%clk 0:02:57]}  d5 {[%clk 0:02:59]} 4. d4 {[%clk 0:02:58]}  Nbd7 {[%clk 0:02:59]} 5. g3 {[%clk 0:02:58]}  Be7 {[%clk 0:02:57]} 6. Bg2 {[%clk 0:02:57]}  O-O {[%clk 0:02:57]} 7. O-O {[%clk 0:02:57]}  c6 {[%clk 0:02:53]} 8. Re1 {[%clk 0:02:50]}  a6 {[%clk 0:02:52]} 9. e4 {[%clk 0:02:50]}  dxe4 {[%clk 0:02:51]} 10. Nxe4 {[%clk 0:02:50]}  Nxe4 {[%clk 0:02:51]} 11. Rxe4 {[%clk 0:02:51]}  Nf6 {[%clk 0:02:51]} 12. Re2 {[%clk 0:02:51]}  a5 {[%clk 0:02:37]} 13. Be3 {[%clk 0:02:45]}  a4 {[%clk 0:02:38]} 14. Ne5 {[%clk 0:02:41]}  Qa5 {[%clk 0:02:35]} 15. g4 {[%clk 0:02:35]}  Rd8 {[%clk 0:02:32]} 16. Rd2 {[%clk 0:02:13]}  Nd7 {[%clk 0:02:30]} 17. Nd3 {[%clk 0:02:02]}  a3 {[%clk 0:02:22]} 18. b3 {[%clk 0:02:01]}  Bf6 {[%clk 0:02:22]} 19. Rc1 {[%clk 0:01:38]}  Nf8 {[%clk 0:01:58]} 20. b4 {[%clk 0:01:23]}  Qa4 {[%clk 0:01:56]} 21. g5 {[%clk 0:01:11]}  Qxd1+ {[%clk 0:01:52]} 22. Rcxd1 {[%clk 0:01:12]}  Be7 {[%clk 0:01:29]} 23. h4 {[%clk 0:01:11]}  Ra4 {[%clk 0:01:26]} 24. Rb1 {[%clk 0:01:10]}  Ng6 {[%clk 0:01:00]} 25. h5 {[%clk 0:01:09]}  Nh4 {[%clk 0:01:00]} 26. Be4 {[%clk 0:01:04]}  g6 {[%clk 0:01:00]} 27. h6 {[%clk 0:01:02]}  Nf5 {[%clk 0:01:01]} 28. Bxf5 {[%clk 0:01:02]}  gxf5 {[%clk 0:01:00]} 29. f4 {[%clk 0:00:57]}  f6 {[%clk 0:00:57]} 30. gxf6 {[%clk 0:00:46]}  Bxf6 {[%clk 0:00:57]} 31. Ne5 {[%clk 0:00:46]}  Bxe5 {[%clk 0:00:56]} 32. fxe5 {[%clk 0:00:47]}  Kf7 {[%clk 0:00:56]} 33. Rg2 {[%clk 0:00:46]}  Rg8 {[%clk 0:00:53]} 34. Rxg8 {[%clk 0:00:46]}  Kxg8 {[%clk 0:00:54]} 35. Kf2 {[%clk 0:00:47]}  Kf7 {[%clk 0:00:52]} 36. Bd2 {[%clk 0:00:46]}  b5 {[%clk 0:00:39]} 37. c5 {[%clk 0:00:44]}  Ra7 {[%clk 0:00:38]} 38. Rg1 {[%clk 0:00:44]}  Kf8 {[%clk 0:00:39]} 39. Bg5 {[%clk 0:00:34]}  Bd7 {[%clk 0:00:34]} 40. Rg3 {[%clk 0:00:22]}  Be8 {[%clk 0:00:33]} 41. Bc1 {[%clk 0:00:22]}  Bg6 {[%clk 0:00:29]} 42. Bxa3 {[%clk 0:00:22]}  Kf7 {[%clk 0:00:27]} 43. Rc3 {[%clk 0:00:22]}  Rd7 {[%clk 0:00:24]} 44. Ke3 {[%clk 0:00:20]}  f4+ {[%clk 0:00:24]} 45. Kxf4 {[%clk 0:00:20]}  Rxd4+ {[%clk 0:00:25]} 46. Kg5 {[%clk 0:00:20]}  Re4 {[%clk 0:00:23]} 47. Rf3+ {[%clk 0:00:21]}  Ke7 {[%clk 0:00:23]} 48. Rf2 {[%clk 0:00:09]}  Rxe5+ {[%clk 0:00:23]} 49. Kg4 {[%clk 0:00:09]}  Bf5+ {[%clk 0:00:21]} 50. Kf4 {[%clk 0:00:09]}  Re4+ {[%clk 0:00:22]} 51. Kf3 {[%clk 0:00:09]}  Rh4 {[%clk 0:00:22]} 52. Rd2 {[%clk 0:00:08]}  Rh3+ {[%clk 0:00:21]} 53. Kf4 {[%clk 0:00:08]}  Rxa3 {[%clk 0:00:22]} 54. Rd6 {[%clk 0:00:09]}  Ra4 {[%clk 0:00:15]} 55. Rxc6 {[%clk 0:00:08]}  Rxb4+ {[%clk 0:00:15]} 56. Kg5 {[%clk 0:00:07]}  Rg4+ {[%clk 0:00:12]} 57. Kh5 {[%clk 0:00:06]}  Kf6 {[%clk 0:00:13]} 58. Rc8 {[%clk 0:00:02]}  Rg3 {[%clk 0:00:08]} 59. Rf8+ {[%clk 0:00:01]}  Ke5 {[%clk 0:00:08]} 0-1


[Site "https://www.chess.com"]

[Event "Titled Tuesday Blitz January 31 Late 2023"]
[White "EREBUNI91"]
[Black "Prydun, Andriy"]
[BlackFideId "14145898"]
[WhiteElo "2685"]
[BlackElo "2134"]
[Result "0-1"]
[Round "06"]
[TimeControl "180+2"]
[Date "2023.01.31"]
[WhiteClock "0:00:21"]
[BlackClock "0:00:05"]

1. e4 {[%clk 0:03:00]}  c6 {[%clk 0:02:51]} 2. d4 {[%clk 0:03:00]}  d5 {[%clk 0:02:52]} 3. exd5 {[%clk 0:03:00]}  cxd5 {[%clk 0:02:52]} 4. Bd3 {[%clk 0:02:57]}  Nd7 {[%clk 0:02:51]} 5. Bf4 {[%clk 0:02:47]}  Nb6 {[%clk 0:02:48]} 6. Nf3 {[%clk 0:02:44]}  Bg4 {[%clk 0:02:47]} 7. O-O {[%clk 0:02:42]}  Nf6 {[%clk 0:02:43]} 8. h3 {[%clk 0:02:40]}  Bh5 {[%clk 0:02:19]} 9. a4 {[%clk 0:02:38]}  a6 {[%clk 0:02:10]} 10. a5 {[%clk 0:02:34]}  Nc8 {[%clk 0:02:09]} 11. c3 {[%clk 0:02:27]}  Bxf3 {[%clk 0:02:01]} 12. Qxf3 {[%clk 0:02:26]}  e6 {[%clk 0:02:01]} 13. Nd2 {[%clk 0:02:22]}  Bd6 {[%clk 0:01:59]} 14. Bg5 {[%clk 0:02:20]}  Be7 {[%clk 0:01:57]} 15. b4 {[%clk 0:02:11]}  O-O {[%clk 0:01:48]} 16. Nb3 {[%clk 0:02:11]}  Nd6 {[%clk 0:01:35]} 17. Nc5 {[%clk 0:02:10]}  Rc8 {[%clk 0:01:10]} 18. Bf4 {[%clk 0:02:10]}  Nfe4 {[%clk 0:01:00]} 19. Nxe4 {[%clk 0:01:55]}  dxe4 {[%clk 0:00:58]} 20. Bxe4 {[%clk 0:01:56]}  Nxe4 {[%clk 0:00:54]} 21. Qxe4 {[%clk 0:01:54]}  Rxc3 {[%clk 0:00:48]} 22. Qxb7 {[%clk 0:01:54]}  Qxd4 {[%clk 0:00:47]} 23. Qxe7 {[%clk 0:01:49]}  Qxf4 {[%clk 0:00:46]} 24. Qb7 {[%clk 0:01:47]}  Qc4 {[%clk 0:00:43]} 25. Rfd1 {[%clk 0:01:34]}  h6 {[%clk 0:00:35]} 26. Qb6 {[%clk 0:01:30]}  Rc8 {[%clk 0:00:28]} 27. Rd8+ {[%clk 0:01:24]}  Rxd8 {[%clk 0:00:28]} 28. Qxd8+ {[%clk 0:01:25]}  Kh7 {[%clk 0:00:29]} 29. Qb6 {[%clk 0:01:24]}  Rb3 {[%clk 0:00:22]} 30. Qb7 {[%clk 0:01:13]}  Kg6 {[%clk 0:00:15]} 31. Rd1 {[%clk 0:00:49]}  Rxb4 {[%clk 0:00:14]} 32. Qf3 {[%clk 0:00:46]}  Ra4 {[%clk 0:00:12]} 33. Rd7 {[%clk 0:00:44]}  Qc1+ {[%clk 0:00:09]} 34. Kh2 {[%clk 0:00:44]}  Qf4+ {[%clk 0:00:07]} 35. Qxf4 {[%clk 0:00:44]}  Rxf4 {[%clk 0:00:08]} 36. Rd6 {[%clk 0:00:43]}  Rxf2 {[%clk 0:00:08]} 37. Rxa6 {[%clk 0:00:44]}  Ra2 {[%clk 0:00:09]} 38. Kg3 {[%clk 0:00:44]}  Ra4 {[%clk 0:00:09]} 39. Kf3 {[%clk 0:00:44]}  Kf6 {[%clk 0:00:07]} 40. g3 {[%clk 0:00:43]}  g5 {[%clk 0:00:08]} 41. g4 {[%clk 0:00:43]}  h5 {[%clk 0:00:08]} 42. gxh5 {[%clk 0:00:42]}  Rh4 {[%clk 0:00:08]} 43. Kg3 {[%clk 0:00:40]}  Rxh5 {[%clk 0:00:06]} 44. Ra8 {[%clk 0:00:39]}  Rh4 {[%clk 0:00:06]} 45. Rb8 {[%clk 0:00:37]}  Ra4 {[%clk 0:00:06]} 46. Rb5 {[%clk 0:00:38]}  Kg6 {[%clk 0:00:06]} 47. Kf3 {[%clk 0:00:37]}  f5 {[%clk 0:00:06]} 48. Re5 {[%clk 0:00:38]}  Kf6 {[%clk 0:00:07]} 49. Rb5 {[%clk 0:00:38]}  Ra3+ {[%clk 0:00:06]} 50. Kg2 {[%clk 0:00:38]}  f4 {[%clk 0:00:07]} 51. Rc5 {[%clk 0:00:34]}  Rg3+ {[%clk 0:00:06]} 52. Kh2 {[%clk 0:00:34]}  Ra3 {[%clk 0:00:07]} 53. Kg2 {[%clk 0:00:34]}  e5 {[%clk 0:00:06]} 54. Rc6+ {[%clk 0:00:31]}  Kf5 {[%clk 0:00:06]} 55. a6 {[%clk 0:00:32]}  Ra2+ {[%clk 0:00:05]} 56. Kg1 {[%clk 0:00:31]}  f3 {[%clk 0:00:06]} 57. Kf1 {[%clk 0:00:26]}  Kf4 {[%clk 0:00:06]} 58. Kg1 {[%clk 0:00:21]}  Kg3 {[%clk 0:00:05]} 0-1


[Site "https://www.chess.com"]

[Event "Titled Tuesday Blitz January 31 Late 2023"]
[White "Vlassov, Nikolai"]
[Black "Can, Melih Kaan"]
[WhiteFideId "4103360"]
[BlackFideId "6317383"]
[WhiteElo "2283"]
[BlackElo "2069"]
[Result "1/2-1/2"]
[Round "06"]
[TimeControl "180+2"]
[Date "2023.01.31"]
[WhiteClock "0:00:18"]
[BlackClock "0:00:04"]

1. e4 {[%clk 0:03:00]}  c5 {[%clk 0:02:58]} 2. c3 {[%clk 0:03:00]}  d5 {[%clk 0:02:58]} 3. exd5 {[%clk 0:03:00]}  Qxd5 {[%clk 0:02:59]} 4. d4 {[%clk 0:03:01]}  Nf6 {[%clk 0:02:59]} 5. Nf3 {[%clk 0:03:01]}  e6 {[%clk 0:03:00]} 6. a3 {[%clk 0:03:01]}  Nc6 {[%clk 0:03:00]} 7. Be3 {[%clk 0:03:00]}  cxd4 {[%clk 0:02:56]} 8. cxd4 {[%clk 0:03:00]}  Be7 {[%clk 0:02:53]} 9. Nc3 {[%clk 0:03:00]}  Qd6 {[%clk 0:02:48]} 10. Qc2 {[%clk 0:03:01]}  O-O {[%clk 0:02:48]} 11. Bd3 {[%clk 0:03:00]}  b6 {[%clk 0:02:48]} 12. Ne4 {[%clk 0:02:59]}  Nxe4 {[%clk 0:02:33]} 13. Bxe4 {[%clk 0:02:59]}  Bb7 {[%clk 0:02:10]} 14. Bxh7+ {[%clk 0:02:59]}  Kh8 {[%clk 0:02:10]} 15. Be4 {[%clk 0:02:59]}  Rac8 {[%clk 0:02:10]} 16. Qe2 {[%clk 0:02:58]}  f5 {[%clk 0:02:02]} 17. Bc2 {[%clk 0:02:57]}  e5 {[%clk 0:01:59]} 18. dxe5 {[%clk 0:02:47]}  Nxe5 {[%clk 0:01:59]} 19. Nxe5 {[%clk 0:02:44]}  Qxe5 {[%clk 0:02:00]} 20. Qh5+ {[%clk 0:02:26]}  Kg8 {[%clk 0:01:54]} 21. Bb3+ {[%clk 0:02:27]}  Bd5 {[%clk 0:01:53]} 22. Bxd5+ {[%clk 0:02:27]}  Qxd5 {[%clk 0:01:52]} 23. O-O {[%clk 0:02:27]}  Rc2 {[%clk 0:01:48]} 24. Rad1 {[%clk 0:02:20]}  Qe6 {[%clk 0:01:31]} 25. Rd2 {[%clk 0:02:13]}  Rxd2 {[%clk 0:01:07]} 26. Bxd2 {[%clk 0:02:13]}  Bf6 {[%clk 0:00:58]} 27. Re1 {[%clk 0:02:13]}  Qd5 {[%clk 0:00:56]} 28. Bc3 {[%clk 0:02:12]}  Bxc3 {[%clk 0:00:53]} 29. bxc3 {[%clk 0:02:12]}  Qc5 {[%clk 0:00:47]} 30. Qf3 {[%clk 0:01:47]}  Qxa3 {[%clk 0:00:38]} 31. g4 {[%clk 0:01:16]}  fxg4 {[%clk 0:00:20]} 32. Qd5+ {[%clk 0:01:13]}  Kh7 {[%clk 0:00:20]} 33. Re5 {[%clk 0:01:09]}  Qc1+ {[%clk 0:00:16]} 34. Kg2 {[%clk 0:01:08]}  Qf4 {[%clk 0:00:10]} 35. Qd3+ {[%clk 0:00:55]}  Kg8 {[%clk 0:00:07]} 36. Qd5+ {[%clk 0:00:46]}  Qf7 {[%clk 0:00:07]} 37. Qd4 {[%clk 0:00:41]}  Qf3+ {[%clk 0:00:06]} 38. Kg1 {[%clk 0:00:42]}  Qf4 {[%clk 0:00:05]} 39. Re4 {[%clk 0:00:33]}  Qc1+ {[%clk 0:00:02]} 40. Kg2 {[%clk 0:00:33]}  Qg5 {[%clk 0:00:02]} 41. Rxg4 {[%clk 0:00:30]}  Qf6 {[%clk 0:00:03]} 42. Qd5+ {[%clk 0:00:26]}  Qf7 {[%clk 0:00:03]} 43. Qd4 {[%clk 0:00:26]}  Qb7+ {[%clk 0:00:03]} 44. Kg3 {[%clk 0:00:23]}  Qc7+ {[%clk 0:00:02]} 45. f4 {[%clk 0:00:23]}  Qf7 {[%clk 0:00:02]} 46. Rg5 {[%clk 0:00:20]}  Re8 {[%clk 0:00:03]} 47. h4 {[%clk 0:00:18]}  Qe7 {[%clk 0:00:03]} 48. Qd5+ {[%clk 0:00:18]}  Qf7 {[%clk 0:00:03]} 49. Qd4 {[%clk 0:00:18]}  Qe7 {[%clk 0:00:03]} 50. Qd5+ {[%clk 0:00:18]}  Qf7 {[%clk 0:00:04]} 51. Qd4 {[%clk 0:00:18]} 1/2-1/2


[Site "https://www.chess.com"]

[Event "Titled Tuesday Blitz January 31 Late 2023"]
[White "Szente Varga, Fruzsina"]
[Black "Kanakaris, Georgios"]
[WhiteFideId "712264"]
[BlackFideId "4209460"]
[WhiteElo "2075"]
[BlackElo "2391"]
[Result "0-1"]
[Round "06"]
[TimeControl "180+2"]
[Date "2023.01.31"]
[WhiteClock "0:00:41"]
[BlackClock "0:00:07"]

1. e4 {[%clk 0:03:00]}  e6 {[%clk 0:02:58]} 2. d4 {[%clk 0:03:00]}  d5 {[%clk 0:02:58]} 3. Nd2 {[%clk 0:02:58]}  Be7 {[%clk 0:02:58]} 4. e5 {[%clk 0:02:57]}  c5 {[%clk 0:02:58]} 5. c3 {[%clk 0:02:57]}  cxd4 {[%clk 0:02:58]} 6. cxd4 {[%clk 0:02:58]}  Qb6 {[%clk 0:02:58]} 7. Qg4 {[%clk 0:02:45]}  g6 {[%clk 0:02:58]} 8. Bd3 {[%clk 0:02:41]}  Bd7 {[%clk 0:02:48]} 9. Ne2 {[%clk 0:02:39]}  Bb5 {[%clk 0:02:46]} 10. Bxb5+ {[%clk 0:02:24]}  Qxb5 {[%clk 0:02:47]} 11. O-O {[%clk 0:02:24]}  Nc6 {[%clk 0:02:42]} 12. Nb3 {[%clk 0:02:17]}  h5 {[%clk 0:02:21]} 13. Qf3 {[%clk 0:02:13]}  h4 {[%clk 0:02:03]} 14. h3 {[%clk 0:02:11]}  Nh6 {[%clk 0:01:49]} 15. Nc3 {[%clk 0:02:01]}  Qb6 {[%clk 0:01:35]} 16. Bxh6 {[%clk 0:02:00]}  Rxh6 {[%clk 0:01:35]} 17. Qe3 {[%clk 0:02:00]}  Rh5 {[%clk 0:01:28]} 18. Na4 {[%clk 0:01:59]}  Qb4 {[%clk 0:01:20]} 19. Nac5 {[%clk 0:01:59]}  Bxc5 {[%clk 0:01:18]} 20. Nxc5 {[%clk 0:01:57]}  Qxd4 {[%clk 0:01:08]} 21. Qxd4 {[%clk 0:01:57]}  Nxd4 {[%clk 0:01:09]} 22. Nxb7 {[%clk 0:01:57]}  Rxe5 {[%clk 0:01:07]} 23. Rfe1 {[%clk 0:01:51]}  Rxe1+ {[%clk 0:01:04]} 24. Rxe1 {[%clk 0:01:52]}  Rb8 {[%clk 0:01:01]} 25. Nc5 {[%clk 0:01:32]}  Rxb2 {[%clk 0:00:57]} 26. a4 {[%clk 0:01:28]}  Rc2 {[%clk 0:00:50]} 27. Nd3 {[%clk 0:01:26]}  Rc3 {[%clk 0:00:42]} 28. Nf4 {[%clk 0:01:25]}  Kd7 {[%clk 0:00:33]} 29. Rd1 {[%clk 0:01:19]}  Nb3 {[%clk 0:00:27]} 30. Ne2 {[%clk 0:01:09]}  Rc2 {[%clk 0:00:25]} 31. Kf1 {[%clk 0:01:08]}  Ra2 {[%clk 0:00:23]} 32. Nc3 {[%clk 0:01:05]}  Ra1 {[%clk 0:00:19]} 33. Rxa1 {[%clk 0:01:02]}  Nxa1 {[%clk 0:00:19]} 34. Nb5 {[%clk 0:01:01]}  a6 {[%clk 0:00:19]} 35. Nd4 {[%clk 0:01:00]}  f6 {[%clk 0:00:17]} 36. Ke2 {[%clk 0:01:00]}  e5 {[%clk 0:00:16]} 37. Nf3 {[%clk 0:01:01]}  g5 {[%clk 0:00:16]} 38. Kd2 {[%clk 0:01:00]}  Nb3+ {[%clk 0:00:16]} 39. Kc3 {[%clk 0:01:00]}  Nc5 {[%clk 0:00:16]} 40. Kb4 {[%clk 0:00:59]}  Kd6 {[%clk 0:00:15]} 41. Ne1 {[%clk 0:00:58]}  d4 {[%clk 0:00:12]} 42. a5 {[%clk 0:00:58]}  Kd5 {[%clk 0:00:11]} 43. f3 {[%clk 0:00:57]}  f5 {[%clk 0:00:11]} 44. Nc2 {[%clk 0:00:55]}  e4 {[%clk 0:00:11]} 45. fxe4+ {[%clk 0:00:54]}  fxe4 {[%clk 0:00:12]} 46. Ne1 {[%clk 0:00:55]}  e3 {[%clk 0:00:11]} 47. Nc2 {[%clk 0:00:53]}  e2 {[%clk 0:00:10]} 48. Ne1 {[%clk 0:00:51]}  Ne6 {[%clk 0:00:08]} 49. Kb3 {[%clk 0:00:51]}  Ke4 {[%clk 0:00:09]} 50. Kc2 {[%clk 0:00:51]}  Ke3 {[%clk 0:00:09]} 51. Nf3 {[%clk 0:00:45]}  Nf4 {[%clk 0:00:08]} 52. Kc1 {[%clk 0:00:41]}  d3 {[%clk 0:00:07]} 0-1


[Site "https://www.chess.com"]

[Event "Titled Tuesday Blitz January 31 Late 2023"]
[White "Klose, Eli"]
[Black "Rosenberg, Evan S"]
[WhiteFideId "16242955"]
[BlackFideId "2019299"]
[WhiteElo "1519"]
[BlackElo "1956"]
[Result "1-0"]
[Round "06"]
[TimeControl "180+2"]
[Date "2023.01.31"]
[WhiteClock "0:02:09"]
[BlackClock "0:01:15"]

1. e4 {[%clk 0:03:00]}  e5 {[%clk 0:02:59]} 2. Nf3 {[%clk 0:03:00]}  Nc6 {[%clk 0:03:00]} 3. d4 {[%clk 0:03:01]}  exd4 {[%clk 0:03:00]} 4. Bc4 {[%clk 0:03:01]}  Nf6 {[%clk 0:02:58]} 5. O-O {[%clk 0:03:01]}  Nxe4 {[%clk 0:02:57]} 6. Re1 {[%clk 0:03:02]}  d5 {[%clk 0:02:57]} 7. Bxd5 {[%clk 0:03:02]}  Qxd5 {[%clk 0:02:58]} 8. Nc3 {[%clk 0:03:03]}  Qd7 {[%clk 0:02:58]} 9. Rxe4+ {[%clk 0:03:02]}  Be7 {[%clk 0:02:56]} 10. Nxd4 {[%clk 0:03:02]}  Nxd4 {[%clk 0:02:36]} 11. Rxd4 {[%clk 0:03:01]}  Bd6 {[%clk 0:02:21]} 12. Bf4 {[%clk 0:02:55]}  O-O {[%clk 0:02:19]} 13. Bxd6 {[%clk 0:02:55]}  cxd6 {[%clk 0:02:20]} 14. Rxd6 {[%clk 0:02:56]}  Qf5 {[%clk 0:02:17]} 15. Qd3 {[%clk 0:02:51]}  Qxd3 {[%clk 0:02:06]} 16. Rxd3 {[%clk 0:02:50]}  Bf5 {[%clk 0:02:06]} 17. Rd2 {[%clk 0:02:50]}  Rfe8 {[%clk 0:02:05]} 18. Rad1 {[%clk 0:02:45]}  h6 {[%clk 0:02:01]} 19. Nd5 {[%clk 0:02:43]}  Rac8 {[%clk 0:01:58]} 20. Ne3 {[%clk 0:02:43]}  Be6 {[%clk 0:01:56]} 21. b3 {[%clk 0:02:39]}  b5 {[%clk 0:01:55]} 22. h3 {[%clk 0:02:29]}  a5 {[%clk 0:01:51]} 23. Rd4 {[%clk 0:02:26]}  a4 {[%clk 0:01:43]} 24. Rb4 {[%clk 0:02:19]}  axb3 {[%clk 0:01:41]} 25. axb3 {[%clk 0:02:20]}  Rc5 {[%clk 0:01:38]} 26. Rd6 {[%clk 0:02:19]}  Ra8 {[%clk 0:01:36]} 27. Rb6 {[%clk 0:02:14]}  Ra1+ {[%clk 0:01:36]} 28. Kh2 {[%clk 0:02:14]}  Ra5 {[%clk 0:01:29]} 29. Rd4 {[%clk 0:02:09]}  Kh7 {[%clk 0:01:15]} 30. b4 {[%clk 0:02:09]} 1-0


[Site "https://www.chess.com"]